[Event "Titled Tuesday Blitz September 21 2021"]
[White "Zubov, Alexander"]
[Black "Tanenbaum, Zachary"]
[WhiteFideId "14109409"]
[BlackFideId "2060850"]
[WhiteElo "2740"]
[BlackElo "2165"]
[Result "1-0"]
[Round "06"]
[TimeControl "180+1"]
[Date "2021.09.21"]
[WhiteClock "0:00:09"]
[BlackClock "0:00:02"]

1. d4 {[%clk 0:03:00]}  d5 {[%clk 0:02:59]} 2. c4 {[%clk 0:03:00]}  dxc4 {[%clk 0:03:00]} 3. e4 {[%clk 0:03:00]}  c5 {[%clk 0:03:00]} 4. d5 {[%clk 0:02:59]}  e6 {[%clk 0:03:01]} 5. Nc3 {[%clk 0:02:59]}  exd5 {[%clk 0:02:59]} 6. Nxd5 {[%clk 0:02:56]}  Nf6 {[%clk 0:02:59]} 7. Bxc4 {[%clk 0:02:52]}  Nxd5 {[%clk 0:02:59]} 8. Bxd5 {[%clk 0:02:50]}  Be7 {[%clk 0:03:00]} 9. Ne2 {[%clk 0:02:50]}  O-O {[%clk 0:03:00]} 10. O-O {[%clk 0:02:50]}  Nd7 {[%clk 0:03:00]} 11. Nc3 {[%clk 0:02:48]}  Nf6 {[%clk 0:03:01]} 12. Bf4 {[%clk 0:02:48]}  Nxd5 {[%clk 0:02:59]} 13. exd5 {[%clk 0:02:47]}  Bf6 {[%clk 0:02:32]} 14. Qf3 {[%clk 0:02:35]}  Bxc3 {[%clk 0:02:16]} 15. bxc3 {[%clk 0:02:34]}  Bf5 {[%clk 0:02:15]} 16. Rad1 {[%clk 0:01:56]}  Qd7 {[%clk 0:02:13]} 17. h3 {[%clk 0:01:54]}  Rfe8 {[%clk 0:02:12]} 18. Qg3 {[%clk 0:01:49]}  Bg6 {[%clk 0:01:55]} 19. Rd2 {[%clk 0:01:40]}  Re4 {[%clk 0:01:47]} 20. Bb8 {[%clk 0:01:30]}  Re8 {[%clk 0:01:44]} 21. Bc7 {[%clk 0:01:29]}  Re4 {[%clk 0:01:42]} 22. Qd6 {[%clk 0:01:16]}  Qb5 {[%clk 0:01:15]} 23. Bd8 {[%clk 0:00:49]}  Qe8 {[%clk 0:00:59]} 24. Bg5 {[%clk 0:00:47]}  b6 {[%clk 0:00:49]} 25. Qc7 {[%clk 0:00:36]}  f6 {[%clk 0:00:38]} 26. Be3 {[%clk 0:00:33]}  Bf5 {[%clk 0:00:28]} 27. Qb7 {[%clk 0:00:17]}  Qc8 {[%clk 0:00:23]} 28. Qxc8+ {[%clk 0:00:16]}  Rxc8 {[%clk 0:00:23]} 29. Ra1 {[%clk 0:00:15]}  Ra4 {[%clk 0:00:19]} 30. f3 {[%clk 0:00:14]}  Ra3 {[%clk 0:00:17]} 31. Rc1 {[%clk 0:00:13]}  Rd8 {[%clk 0:00:15]} 32. Bf4 {[%clk 0:00:13]}  Ra4 {[%clk 0:00:13]} 33. Bc7 {[%clk 0:00:13]}  Re8 {[%clk 0:00:11]} 34. d6 {[%clk 0:00:13]}  Bd7 {[%clk 0:00:12]} 35. Kf2 {[%clk 0:00:14]}  Rf4 {[%clk 0:00:08]} 36. c4 {[%clk 0:00:11]}  Rf5 {[%clk 0:00:08]} 37. Rd3 {[%clk 0:00:11]}  Rfe5 {[%clk 0:00:08]} 38. Rd2 {[%clk 0:00:11]}  Kf7 {[%clk 0:00:07]} 39. Rc3 {[%clk 0:00:11]}  h5 {[%clk 0:00:07]} 40. Ra3 {[%clk 0:00:12]}  Ra8 {[%clk 0:00:03]} 41. Bxb6 {[%clk 0:00:11]}  Rb8 {[%clk 0:00:03]} 42. Rxa7 {[%clk 0:00:10]}  Ke6 {[%clk 0:00:02]} 43. Ba5 {[%clk 0:00:11]}  h4 {[%clk 0:00:02]} 44. Bc3 {[%clk 0:00:11]}  Rf5 {[%clk 0:00:02]} 45. Re2+ {[%clk 0:00:12]}  Kxd6 {[%clk 0:00:02]} 46. Rd2+ {[%clk 0:00:12]}  Ke6 {[%clk 0:00:02]} 47. Raxd7 {[%clk 0:00:12]}  Rf4 {[%clk 0:00:02]} 48. R2d6+ {[%clk 0:00:08]}  Kf5 {[%clk 0:00:03]} 49. Rxg7 {[%clk 0:00:08]}  Rxc4 {[%clk 0:00:03]} 50. Bd2 {[%clk 0:00:08]}  Rc2 {[%clk 0:00:02]} 51. a4 {[%clk 0:00:07]}  Rbb2 {[%clk 0:00:02]} 52. Rgd7 {[%clk 0:00:07]}  c4 {[%clk 0:00:02]} 53. Rd5+ {[%clk 0:00:07]}  Ke6 {[%clk 0:00:02]} 54. R5d6+ {[%clk 0:00:07]}  Ke5 {[%clk 0:00:02]} 55. Rd5+ {[%clk 0:00:07]}  Ke6 {[%clk 0:00:02]} 56. R7d6+ {[%clk 0:00:06]}  Ke7 {[%clk 0:00:03]} 57. Ke3 {[%clk 0:00:07]}  c3 {[%clk 0:00:03]} 58. a5 {[%clk 0:00:08]}  cxd2 {[%clk 0:00:02]} 59. Rxd2 {[%clk 0:00:08]}  Rc3+ {[%clk 0:00:01]} 60. R6d3 {[%clk 0:00:09]}  Rxd3+ {[%clk 0:00:01]} 61. Kxd3 {[%clk 0:00:10]}  Rb3+ {[%clk 0:00:02]} 62. Kc4 {[%clk 0:00:10]}  Ra3 {[%clk 0:00:02]} 63. Kb5 {[%clk 0:00:11]}  Ke6 {[%clk 0:00:02]} 64. Rd4 {[%clk 0:00:11]}  Ke5 {[%clk 0:00:02]} 65. Rxh4 {[%clk 0:00:10]}  Ra2 {[%clk 0:00:02]} 66. a6 {[%clk 0:00:10]}  f5 {[%clk 0:00:03]} 67. Ra4 {[%clk 0:00:09]}  Rxg2 {[%clk 0:00:02]} 68. a7 {[%clk 0:00:09]} 1-0


[Site "https://www.chess.com"]

[Event "Titled Tuesday Blitz September 21 2021"]
[White "Baches Garcia, Guillermo"]
[Black "Aradhya, Garg"]
[WhiteFideId "2209764"]
[BlackFideId "25006746"]
[WhiteElo "2470"]
[BlackElo "2146"]
[Result "1-0"]
[Round "07"]
[TimeControl "180+1"]
[Date "2021.09.21"]
[WhiteClock "0:00:54"]
[BlackClock "0:02:14"]

1. e4 {[%clk 0:03:00]}  e5 {[%clk 0:03:00]} 2. Nf3 {[%clk 0:03:01]}  Nc6 {[%clk 0:03:00]} 3. Nc3 {[%clk 0:03:01]}  Nf6 {[%clk 0:03:00]} 4. d4 {[%clk 0:03:02]}  exd4 {[%clk 0:03:00]} 5. Nxd4 {[%clk 0:03:03]}  Nxe4 {[%clk 0:03:00]} 6. Nxe4 {[%clk 0:02:50]}  Qe7 {[%clk 0:03:00]} 7. f3 {[%clk 0:02:50]}  d5 {[%clk 0:02:59]} 8. Bb5 {[%clk 0:02:47]}  Bd7 {[%clk 0:02:59]} 9. Bxc6 {[%clk 0:02:38]}  bxc6 {[%clk 0:02:58]} 10. Be3 {[%clk 0:02:28]}  dxe4 {[%clk 0:02:56]} 11. fxe4 {[%clk 0:02:27]}  Qh4+ {[%clk 0:02:48]} 12. g3 {[%clk 0:01:48]}  Qxe4 {[%clk 0:02:47]} 13. Qf3 {[%clk 0:01:45]}  Qxf3 {[%clk 0:02:28]} 14. Nxf3 {[%clk 0:01:46]}  Bd6 {[%clk 0:02:28]} 15. O-O-O {[%clk 0:01:40]}  O-O-O {[%clk 0:02:22]} 16. Nd4 {[%clk 0:01:05]}  Rhe8 {[%clk 0:02:14]} 17. Rde1 {[%clk 0:00:54]} 1-0


[Site "https://www.chess.com"]

[Event "Titled Tuesday Blitz September 21 2021"]
[White "Balleisen, Aaron"]
[Black "Kislov, Oleg"]
[WhiteFideId "2087073"]
[BlackFideId "13503774"]
[WhiteElo "2288"]
[BlackElo "2252"]
[Result "1/2-1/2"]
[Round "07"]
[TimeControl "180+1"]
[Date "2021.09.21"]
[WhiteClock "0:01:35"]
[BlackClock "0:01:51"]

1. d4 {[%clk 0:02:30]}  Nf6 {[%clk 0:02:58]} 2. c4 {[%clk 0:02:29]}  e6 {[%clk 0:02:58]} 3. Nf3 {[%clk 0:02:29]}  d5 {[%clk 0:02:58]} 4. g3 {[%clk 0:02:29]}  Be7 {[%clk 0:02:53]} 5. Bg2 {[%clk 0:02:29]}  O-O {[%clk 0:02:54]} 6. O-O {[%clk 0:02:29]}  dxc4 {[%clk 0:02:54]} 7. Qc2 {[%clk 0:02:29]}  Bd7 {[%clk 0:02:51]} 8. Ne5 {[%clk 0:02:24]}  Bc6 {[%clk 0:02:39]} 9. Nxc6 {[%clk 0:02:18]}  Nxc6 {[%clk 0:02:37]} 10. Bxc6 {[%clk 0:02:12]}  bxc6 {[%clk 0:02:37]} 11. Qxc4 {[%clk 0:02:12]}  Qd5 {[%clk 0:02:35]} 12. Qxd5 {[%clk 0:02:09]}  cxd5 {[%clk 0:02:35]} 13. Bf4 {[%clk 0:02:03]}  c5 {[%clk 0:02:34]} 14. dxc5 {[%clk 0:01:58]}  Bxc5 {[%clk 0:02:35]} 15. Nd2 {[%clk 0:01:57]}  a5 {[%clk 0:02:24]} 16. Rfc1 {[%clk 0:01:52]}  Rfc8 {[%clk 0:02:23]} 17. Nb3 {[%clk 0:01:42]}  Bb6 {[%clk 0:02:21]} 18. Rxc8+ {[%clk 0:01:40]}  Rxc8 {[%clk 0:02:20]} 19. Rc1 {[%clk 0:01:41]}  Rxc1+ {[%clk 0:02:11]} 20. Nxc1 {[%clk 0:01:41]}  Ne4 {[%clk 0:01:51]} 21. Nd3 {[%clk 0:01:35]} 1/2-1/2


[Site "https://www.chess.com"]

[Event "Titled Tuesday Blitz September 21 2021"]
[White "Boidiya, Sidi"]
[Black "Silva, Miguel Antonio Neto"]
[WhiteFideId "19600100"]
[BlackFideId "1911929"]
[WhiteElo "2113"]
[BlackElo "2283"]
[Result "1-0"]
[Round "07"]
[TimeControl "180+1"]
[Date "2021.09.21"]
[WhiteClock "0:00:51"]
[BlackClock "0:02:17"]

1. e4 {[%clk 0:02:29]}  c6 {[%clk 0:02:58]} 2. d4 {[%clk 0:02:28]}  d5 {[%clk 0:02:57]} 3. Nd2 {[%clk 0:02:29]}  dxe4 {[%clk 0:02:54]} 4. Nxe4 {[%clk 0:02:30]}  Nf6 {[%clk 0:02:54]} 5. Ng5 {[%clk 0:02:29]}  Bf5 {[%clk 0:02:48]} 6. N1f3 {[%clk 0:02:28]}  h6 {[%clk 0:02:45]} 7. Nxf7 {[%clk 0:02:24]}  Kxf7 {[%clk 0:02:41]} 8. Ne5+ {[%clk 0:02:24]}  Kg8 {[%clk 0:02:26]} 9. Bc4+ {[%clk 0:02:21]}  Nd5 {[%clk 0:02:26]} 10. Qf3 {[%clk 0:02:06]}  Be6 {[%clk 0:02:24]} 11. Bd3 {[%clk 0:02:06]}  Nd7 {[%clk 0:02:20]} 12. Ng6 {[%clk 0:01:58]}  Nb4 {[%clk 0:02:17]} 13. Nxh8 {[%clk 0:00:51]} 1-0


[Site "https://www.chess.com"]

[Event "Titled Tuesday Blitz September 21 2021"]
[White "Costachi, Mihnea"]
[Black "Koridze, Lile"]
[WhiteFideId "1217518"]
[BlackFideId "13612514"]
[WhiteElo "2482"]
[BlackElo "1978"]
[Result "0-1"]
[Round "07"]
[TimeControl "180+1"]
[Date "2021.09.21"]
[WhiteClock "0:01:48"]
[BlackClock "0:01:44"]

1. g4 {[%clk 0:02:59]}  d5 {[%clk 0:02:59]} 2. Bg2 {[%clk 0:02:58]}  Bxg4 {[%clk 0:02:53]} 3. c4 {[%clk 0:02:58]}  Be6 {[%clk 0:02:51]} 4. Qb3 {[%clk 0:02:56]}  Bc8 {[%clk 0:02:39]} 5. cxd5 {[%clk 0:02:55]}  Na6 {[%clk 0:02:38]} 6. Nc3 {[%clk 0:02:53]}  Nf6 {[%clk 0:02:34]} 7. e4 {[%clk 0:02:53]}  g6 {[%clk 0:02:32]} 8. e5 {[%clk 0:02:52]}  Nh5 {[%clk 0:02:31]} 9. d4 {[%clk 0:02:47]}  Bg7 {[%clk 0:02:30]} 10. Nge2 {[%clk 0:02:40]}  O-O {[%clk 0:02:30]} 11. Be3 {[%clk 0:02:40]}  Bf5 {[%clk 0:02:29]} 12. Qxb7 {[%clk 0:02:38]}  Qc8 {[%clk 0:02:14]} 13. d6 {[%clk 0:02:38]}  Rb8 {[%clk 0:02:09]} 14. Qxc8 {[%clk 0:02:32]}  Rfxc8 {[%clk 0:02:09]} 15. dxe7 {[%clk 0:02:30]}  Rxb2 {[%clk 0:02:06]} 16. Bc6 {[%clk 0:02:27]}  Nb4 {[%clk 0:02:01]} 17. Ba4 {[%clk 0:01:48]}  c6 {[%clk 0:01:44]} 0-1


[Site "https://www.chess.com"]

[Event "Titled Tuesday Blitz September 21 2021"]
[White "Djordjevic, Vuk"]
[Black "Federzoni, Enzo"]
[WhiteFideId "902098"]
[BlackFideId "2173301"]
[WhiteElo "2463"]
[BlackElo "1956"]
[Result "0-1"]
[Round "07"]
[TimeControl "180+1"]
[Date "2021.09.21"]
[WhiteClock "0:01:51"]
[BlackClock "0:01:56"]

1. d4 {[%clk 0:03:00]}  Nf6 {[%clk 0:03:00]} 2. Bg5 {[%clk 0:02:59]}  Ne4 {[%clk 0:02:52]} 3. Bf4 {[%clk 0:02:59]}  d5 {[%clk 0:02:52]} 4. e3 {[%clk 0:02:58]}  e6 {[%clk 0:02:50]} 5. Nd2 {[%clk 0:02:56]}  Nxd2 {[%clk 0:02:49]} 6. Qxd2 {[%clk 0:02:56]}  c5 {[%clk 0:02:50]} 7. Nf3 {[%clk 0:02:56]}  Nc6 {[%clk 0:02:50]} 8. c3 {[%clk 0:02:54]}  Bd6 {[%clk 0:02:50]} 9. Bg3 {[%clk 0:02:51]}  O-O {[%clk 0:02:49]} 10. Bd3 {[%clk 0:02:51]}  b6 {[%clk 0:02:48]} 11. O-O {[%clk 0:02:50]}  Re8 {[%clk 0:02:49]} 12. e4 {[%clk 0:02:46]}  dxe4 {[%clk 0:02:48]} 13. Bxe4 {[%clk 0:02:43]}  Bb7 {[%clk 0:02:48]} 14. dxc5 {[%clk 0:02:38]}  Bxg3 {[%clk 0:02:32]} 15. hxg3 {[%clk 0:02:13]}  Qxd2 {[%clk 0:02:24]} 16. Nxd2 {[%clk 0:02:14]}  bxc5 {[%clk 0:02:24]} 17. Nb3 {[%clk 0:02:12]}  Na5 {[%clk 0:02:11]} 18. Nxc5 {[%clk 0:02:08]}  Bxe4 {[%clk 0:02:09]} 19. Nxe4 {[%clk 0:02:09]}  Nc4 {[%clk 0:02:09]} 20. b3 {[%clk 0:02:05]}  Ne5 {[%clk 0:02:09]} 21. c4 {[%clk 0:02:01]}  a5 {[%clk 0:02:07]} 22. Rfd1 {[%clk 0:01:51]}  f5 {[%clk 0:01:56]} 0-1


[Site "https://www.chess.com"]

[Event "Titled Tuesday Blitz September 21 2021"]
[White "Erdogmus, Yagiz Kaan"]
[Black "Thomas, Anysia"]
[WhiteFideId "44599790"]
[BlackFideId "670472"]
[WhiteElo "1783"]
[BlackElo "2004"]
[Result "1-0"]
[Round "07"]
[TimeControl "180+1"]
[Date "2021.09.21"]
[WhiteClock "0:00:48"]
[BlackClock "0:01:41"]

1. e4 {[%clk 0:03:00]}  c5 {[%clk 0:02:57]} 2. Nf3 {[%clk 0:03:01]}  g6 {[%clk 0:02:57]} 3. d4 {[%clk 0:02:59]}  cxd4 {[%clk 0:02:58]} 4. Qxd4 {[%clk 0:02:59]}  Nf6 {[%clk 0:02:58]} 5. Nc3 {[%clk 0:02:59]}  Nc6 {[%clk 0:02:58]} 6. Qa4 {[%clk 0:03:00]}  d6 {[%clk 0:02:58]} 7. e5 {[%clk 0:03:00]}  dxe5 {[%clk 0:02:59]} 8. Nxe5 {[%clk 0:03:01]}  Bd7 {[%clk 0:02:59]} 9. Nxd7 {[%clk 0:03:01]}  Nxd7 {[%clk 0:03:00]} 10. Bb5 {[%clk 0:03:01]}  Bg7 {[%clk 0:03:00]} 11. O-O {[%clk 0:02:58]}  O-O {[%clk 0:02:59]} 12. Rd1 {[%clk 0:02:58]}  Qc8 {[%clk 0:02:59]} 13. Nd5 {[%clk 0:02:57]}  Re8 {[%clk 0:02:42]} 14. Qh4 {[%clk 0:02:42]}  Nf6 {[%clk 0:02:34]} 15. c3 {[%clk 0:02:22]}  Nxd5 {[%clk 0:02:26]} 16. Rxd5 {[%clk 0:02:21]}  a6 {[%clk 0:02:23]} 17. Bf1 {[%clk 0:02:19]}  b5 {[%clk 0:02:19]} 18. Be3 {[%clk 0:02:14]}  Qb7 {[%clk 0:02:12]} 19. Rad1 {[%clk 0:02:09]}  Ne5 {[%clk 0:01:59]} 20. R5d2 {[%clk 0:01:33]}  Rac8 {[%clk 0:01:41]} 21. Qg3 {[%clk 0:00:48]} 1-0


[Site "https://www.chess.com"]

[Event "Titled Tuesday Blitz September 21 2021"]
[White "FGHSMN"]
[Black "Tang, Andrew"]
[BlackFideId "2059630"]
[WhiteElo "2746"]
[BlackElo "2588"]
[Result "0-1"]
[Round "07"]
[TimeControl "180+1"]
[Date "2021.09.21"]
[WhiteClock "0:01:21"]
[BlackClock "0:00:45"]

1. b3 {[%clk 0:03:00]}  d5 {[%clk 0:02:58]} 2. Bb2 {[%clk 0:03:00]}  c5 {[%clk 0:02:59]} 3. e3 {[%clk 0:02:58]}  Nc6 {[%clk 0:02:59]} 4. Bb5 {[%clk 0:02:55]}  Qb6 {[%clk 0:03:00]} 5. Bxc6+ {[%clk 0:02:47]}  Qxc6 {[%clk 0:03:01]} 6. Nf3 {[%clk 0:02:47]}  Nf6 {[%clk 0:03:01]} 7. c4 {[%clk 0:02:41]}  dxc4 {[%clk 0:02:35]} 8. bxc4 {[%clk 0:02:42]}  Bg4 {[%clk 0:02:35]} 9. h3 {[%clk 0:02:38]}  Bh5 {[%clk 0:02:35]} 10. Nc3 {[%clk 0:02:31]}  e6 {[%clk 0:02:31]} 11. O-O {[%clk 0:02:20]}  Bd6 {[%clk 0:02:15]} 12. Qa4 {[%clk 0:02:00]}  Qxa4 {[%clk 0:02:00]} 13. Nxa4 {[%clk 0:02:01]}  Bg6 {[%clk 0:02:00]} 14. Be5 {[%clk 0:01:56]}  Be7 {[%clk 0:01:56]} 15. d4 {[%clk 0:01:40]}  cxd4 {[%clk 0:01:43]} 16. exd4 {[%clk 0:01:33]}  O-O {[%clk 0:01:25]} 17. Rfc1 {[%clk 0:01:21]}  Rfc8 {[%clk 0:00:45]} 0-1


[Site "https://www.chess.com"]

[Event "Titled Tuesday Blitz September 21 2021"]
[White "Gabrielian, Artur"]
[Black "Nesterov, Arseniy"]
[WhiteFideId "4131002"]
[BlackFideId "24198455"]
[WhiteElo "2489"]
[BlackElo "2494"]
[Result "1-0"]
[Round "07"]
[TimeControl "180+1"]
[Date "2021.09.21"]
[WhiteClock "0:02:27"]
[BlackClock "0:00:58"]

1. e4 {[%clk 0:03:00]}  e5 {[%clk 0:02:54]} 2. Nc3 {[%clk 0:03:01]}  Nc6 {[%clk 0:02:54]} 3. g3 {[%clk 0:03:01]}  Bc5 {[%clk 0:02:53]} 4. Bg2 {[%clk 0:03:01]}  h5 {[%clk 0:02:54]} 5. h3 {[%clk 0:03:00]}  d6 {[%clk 0:02:54]} 6. Nge2 {[%clk 0:03:00]}  Nge7 {[%clk 0:02:51]} 7. d3 {[%clk 0:02:58]}  Be6 {[%clk 0:02:47]} 8. Nd5 {[%clk 0:02:55]}  Bd7 {[%clk 0:02:39]} 9. c3 {[%clk 0:02:53]}  Nxd5 {[%clk 0:02:39]} 10. exd5 {[%clk 0:02:53]}  Ne7 {[%clk 0:02:39]} 11. d4 {[%clk 0:02:53]}  exd4 {[%clk 0:02:35]} 12. Nxd4 {[%clk 0:02:51]}  h4 {[%clk 0:02:15]} 13. g4 {[%clk 0:02:51]}  Ng6 {[%clk 0:02:09]} 14. O-O {[%clk 0:02:48]}  O-O {[%clk 0:02:09]} 15. Be3 {[%clk 0:02:40]}  Re8 {[%clk 0:02:08]} 16. Qd2 {[%clk 0:02:40]}  Qe7 {[%clk 0:01:40]} 17. Rae1 {[%clk 0:02:39]}  Qf8 {[%clk 0:01:30]} 18. f4 {[%clk 0:02:39]}  f5 {[%clk 0:01:18]} 19. g5 {[%clk 0:02:37]}  c6 {[%clk 0:00:58]} 20. dxc6 {[%clk 0:02:27]} 1-0


[Site "https://www.chess.com"]

[Event "Titled Tuesday Blitz September 21 2021"]
[White "Garcia Garcia, Alejandro"]
[Black "Mischuk, Dmitry"]
[WhiteFideId "3516334"]
[BlackFideId "14118734"]
[WhiteElo "2131"]
[BlackElo "2369"]
[Result "1-0"]
[Round "07"]
[TimeControl "180+1"]
[Date "2021.09.21"]
[WhiteClock "0:01:20"]
[BlackClock "0:01:52"]

1. Nf3 {[%clk 0:03:00]}  Nf6 {[%clk 0:02:58]} 2. g3 {[%clk 0:03:01]}  g6 {[%clk 0:02:58]} 3. Bg2 {[%clk 0:03:02]}  Bg7 {[%clk 0:02:58]} 4. O-O {[%clk 0:03:02]}  O-O {[%clk 0:02:59]} 5. c4 {[%clk 0:03:02]}  d5 {[%clk 0:03:00]} 6. cxd5 {[%clk 0:03:02]}  Nxd5 {[%clk 0:03:01]} 7. Nc3 {[%clk 0:03:03]}  c5 {[%clk 0:02:59]} 8. d4 {[%clk 0:03:02]}  cxd4 {[%clk 0:02:53]} 9. Nxd4 {[%clk 0:03:01]}  Nxc3 {[%clk 0:02:52]} 10. bxc3 {[%clk 0:03:02]}  e5 {[%clk 0:02:51]} 11. Nb5 {[%clk 0:02:58]}  Qa5 {[%clk 0:02:45]} 12. Qb3 {[%clk 0:02:22]}  Be6 {[%clk 0:02:43]} 13. c4 {[%clk 0:02:21]}  Na6 {[%clk 0:02:37]} 14. Be3 {[%clk 0:02:11]}  Rac8 {[%clk 0:02:11]} 15. Nd6 {[%clk 0:02:06]}  Rc7 {[%clk 0:01:59]} 16. Nxb7 {[%clk 0:02:05]}  Qb4 {[%clk 0:01:58]} 17. Rab1 {[%clk 0:01:55]}  Qxc4 {[%clk 0:01:52]} 18. Qa3 {[%clk 0:01:20]} 1-0


[Site "https://www.chess.com"]

[Event "Titled Tuesday Blitz September 21 2021"]
[White "Gorin, Leonid"]
[Black "Begunov, Konstantin"]
[WhiteFideId "4131991"]
[BlackFideId "4118510"]
[WhiteElo "2363"]
[BlackElo "2262"]
[Result "1-0"]
[Round "07"]
[TimeControl "180+1"]
[Date "2021.09.21"]
[WhiteClock "0:01:58"]
[BlackClock "0:01:24"]

1. e4 {[%clk 0:02:58]}  g6 {[%clk 0:02:59]} 2. d4 {[%clk 0:02:56]}  Bg7 {[%clk 0:02:59]} 3. Nf3 {[%clk 0:02:57]}  c6 {[%clk 0:02:59]} 4. Nc3 {[%clk 0:02:57]}  d5 {[%clk 0:02:59]} 5. h3 {[%clk 0:02:57]}  dxe4 {[%clk 0:02:59]} 6. Nxe4 {[%clk 0:02:57]}  Nd7 {[%clk 0:02:59]} 7. Bc4 {[%clk 0:02:56]}  Ngf6 {[%clk 0:02:58]} 8. Qe2 {[%clk 0:02:56]}  O-O {[%clk 0:02:55]} 9. O-O {[%clk 0:02:54]}  Nxe4 {[%clk 0:02:51]} 10. Qxe4 {[%clk 0:02:53]}  Nf6 {[%clk 0:02:52]} 11. Qh4 {[%clk 0:02:53]}  b5 {[%clk 0:02:51]} 12. Bb3 {[%clk 0:02:52]}  a5 {[%clk 0:02:52]} 13. a3 {[%clk 0:02:49]}  a4 {[%clk 0:02:41]} 14. Ba2 {[%clk 0:02:49]}  Bf5 {[%clk 0:02:41]} 15. c3 {[%clk 0:02:48]}  Be4 {[%clk 0:02:20]} 16. Ne5 {[%clk 0:02:40]}  Bd5 {[%clk 0:02:15]} 17. Bxd5 {[%clk 0:02:33]}  Qxd5 {[%clk 0:02:00]} 18. Re1 {[%clk 0:02:32]}  Rfe8 {[%clk 0:01:57]} 19. Nd3 {[%clk 0:02:22]}  Rad8 {[%clk 0:01:46]} 20. Bg5 {[%clk 0:02:20]}  Qc4 {[%clk 0:01:39]} 21. Rad1 {[%clk 0:02:16]}  Rd5 {[%clk 0:01:24]} 22. Qg3 {[%clk 0:01:58]} 1-0


[Site "https://www.chess.com"]

[Event "Titled Tuesday Blitz September 21 2021"]
[White "Gubanov, Oleg"]
[Black "Piesik, Piotr"]
[WhiteFideId "14115115"]
[BlackFideId "1136194"]
[WhiteElo "2128"]
[BlackElo "2365"]
[Result "1-0"]
[Round "07"]
[TimeControl "180+1"]
[Date "2021.09.21"]
[WhiteClock "0:00:39"]
[BlackClock "0:01:57"]

1. d4 {[%clk 0:03:00]}  c5 {[%clk 0:02:59]} 2. d5 {[%clk 0:03:00]}  e5 {[%clk 0:02:58]} 3. Nc3 {[%clk 0:03:00]}  d6 {[%clk 0:02:58]} 4. e4 {[%clk 0:03:00]}  Be7 {[%clk 0:02:59]} 5. Nf3 {[%clk 0:03:00]}  a6 {[%clk 0:02:58]} 6. a4 {[%clk 0:02:59]}  Bg4 {[%clk 0:02:59]} 7. h3 {[%clk 0:02:58]}  Bxf3 {[%clk 0:02:59]} 8. Qxf3 {[%clk 0:02:59]}  Bg5 {[%clk 0:02:59]} 9. Qg3 {[%clk 0:02:51]}  Bxc1 {[%clk 0:02:59]} 10. Rxc1 {[%clk 0:02:52]}  Qf6 {[%clk 0:02:58]} 11. Bd3 {[%clk 0:02:50]}  Ne7 {[%clk 0:02:58]} 12. O-O {[%clk 0:02:49]}  O-O {[%clk 0:02:58]} 13. f4 {[%clk 0:02:48]}  exf4 {[%clk 0:02:58]} 14. Rxf4 {[%clk 0:02:47]}  Qe5 {[%clk 0:02:56]} 15. Qf2 {[%clk 0:02:28]}  Ng6 {[%clk 0:02:56]} 16. Rf5 {[%clk 0:02:24]}  Qe7 {[%clk 0:02:56]} 17. Rf1 {[%clk 0:02:15]}  Nd7 {[%clk 0:02:55]} 18. Nd1 {[%clk 0:02:10]}  Nde5 {[%clk 0:02:43]} 19. Ne3 {[%clk 0:02:09]}  Nxd3 {[%clk 0:02:38]} 20. cxd3 {[%clk 0:02:10]}  Ne5 {[%clk 0:02:38]} 21. Qg3 {[%clk 0:02:00]}  g6 {[%clk 0:02:33]} 22. Rf6 {[%clk 0:01:44]}  Kh8 {[%clk 0:02:32]} 23. Ng4 {[%clk 0:01:42]}  Nxg4 {[%clk 0:02:31]} 24. hxg4 {[%clk 0:01:39]}  Rad8 {[%clk 0:02:31]} 25. Qh4 {[%clk 0:01:29]}  Rd7 {[%clk 0:02:22]} 26. R1f3 {[%clk 0:01:18]}  Kg7 {[%clk 0:01:57]} 27. g5 {[%clk 0:00:39]} 1-0


[Site "https://www.chess.com"]

[Event "Titled Tuesday Blitz September 21 2021"]
[White "Guliev, Logman"]
[Black "Kovalchuk94"]
[WhiteFideId "13400061"]
[WhiteElo "2128"]
[BlackElo "2688"]
[Result "0-1"]
[Round "07"]
[TimeControl "180+1"]
[Date "2021.09.21"]
[WhiteClock "0:00:34"]
[BlackClock "0:02:14"]

1. e4 {[%clk 0:03:00]}  e5 {[%clk 0:02:59]} 2. Nf3 {[%clk 0:03:00]}  Nf6 {[%clk 0:02:59]} 3. Nxe5 {[%clk 0:02:59]}  d6 {[%clk 0:02:59]} 4. Nf3 {[%clk 0:03:00]}  Nxe4 {[%clk 0:03:00]} 5. d4 {[%clk 0:02:59]}  d5 {[%clk 0:03:00]} 6. Bd3 {[%clk 0:03:00]}  Bd6 {[%clk 0:03:00]} 7. O-O {[%clk 0:02:59]}  O-O {[%clk 0:03:01]} 8. c4 {[%clk 0:02:59]}  c6 {[%clk 0:03:02]} 9. Nc3 {[%clk 0:02:59]}  Nxc3 {[%clk 0:03:01]} 10. bxc3 {[%clk 0:02:59]}  dxc4 {[%clk 0:03:01]} 11. Bxc4 {[%clk 0:03:00]}  Bf5 {[%clk 0:03:02]} 12. Re1 {[%clk 0:02:58]}  Nd7 {[%clk 0:03:01]} 13. Bg5 {[%clk 0:02:55]}  Qa5 {[%clk 0:03:01]} 14. Qd2 {[%clk 0:02:44]}  Nb6 {[%clk 0:02:56]} 15. Bb3 {[%clk 0:02:39]}  Nd5 {[%clk 0:02:56]} 16. c4 {[%clk 0:02:27]}  Bb4 {[%clk 0:02:55]} 17. Qd1 {[%clk 0:01:34]}  Bxe1 {[%clk 0:02:53]} 18. cxd5 {[%clk 0:01:34]}  Bc3 {[%clk 0:02:52]} 19. Rc1 {[%clk 0:01:29]}  cxd5 {[%clk 0:02:52]} 20. Ne5 {[%clk 0:01:15]}  Rac8 {[%clk 0:02:47]} 21. Be7 {[%clk 0:00:50]}  Rfe8 {[%clk 0:02:43]} 22. Bc5 {[%clk 0:00:34]}  Be6 {[%clk 0:02:14]} 0-1


[Site "https://www.chess.com"]

[Event "Titled Tuesday Blitz September 21 2021"]
[White "Harshavardhan G B"]
[Black "Onyshchuk, Volodymyr"]
[WhiteFideId "25059009"]
[BlackFideId "14114038"]
[WhiteElo "1825"]
[BlackElo "2603"]
[Result "0-1"]
[Round "07"]
[TimeControl "180+1"]
[Date "2021.09.21"]
[WhiteClock "0:00:10"]
[BlackClock "0:01:09"]

1. d4 {[%clk 0:02:26]}  d6 {[%clk 0:02:58]} 2. c4 {[%clk 0:02:24]}  e5 {[%clk 0:02:58]} 3. Nf3 {[%clk 0:02:22]}  e4 {[%clk 0:02:58]} 4. Nfd2 {[%clk 0:02:19]}  f5 {[%clk 0:02:55]} 5. e3 {[%clk 0:02:18]}  Nf6 {[%clk 0:02:54]} 6. Nc3 {[%clk 0:02:18]}  g6 {[%clk 0:02:48]} 7. b4 {[%clk 0:02:16]}  Bg7 {[%clk 0:02:48]} 8. Qb3 {[%clk 0:02:14]}  O-O {[%clk 0:02:47]} 9. Be2 {[%clk 0:02:13]}  Be6 {[%clk 0:02:45]} 10. a4 {[%clk 0:02:12]}  Nbd7 {[%clk 0:02:28]} 11. Ba3 {[%clk 0:02:09]}  c6 {[%clk 0:02:19]} 12. b5 {[%clk 0:02:03]}  c5 {[%clk 0:02:18]} 13. Rd1 {[%clk 0:01:43]}  Bf7 {[%clk 0:02:15]} 14. Nf1 {[%clk 0:01:39]}  Qe7 {[%clk 0:02:12]} 15. Ng3 {[%clk 0:01:30]}  h5 {[%clk 0:02:12]} 16. h4 {[%clk 0:01:17]}  Rac8 {[%clk 0:02:06]} 17. O-O {[%clk 0:00:57]}  Ne8 {[%clk 0:01:17]} 18. dxc5 {[%clk 0:00:10]}  Nxc5 {[%clk 0:01:09]} 0-1


[Site "https://www.chess.com"]